[Event "Titled Tuesday Blitz June 27 Late 2023"]
[White "Aradhya, Garg"]
[Black "JackRodgers"]
[WhiteFideId "25006746"]
[WhiteElo "2756"]
[BlackElo "2568"]
[Result "1/2-1/2"]
[Round "8"]
[TimeControl "180+2"]
[Date "2023.06.27"]
[WhiteClock "0:00:09"]
[BlackClock "0:00:03"]
[Board "37"]

1. d4 {[%clk 0:03:00]}  Nf6 {[%clk 0:02:59]} 2. c4 {[%clk 0:03:01]}  c5 {[%clk 0:02:59]} 3. d5 {[%clk 0:03:01]}  e5 {[%clk 0:03:00]} 4. Nc3 {[%clk 0:03:01]}  d6 {[%clk 0:03:00]} 5. Nf3 {[%clk 0:03:00]}  Be7 {[%clk 0:03:00]} 6. e4 {[%clk 0:03:00]}  Nbd7 {[%clk 0:03:00]} 7. Be2 {[%clk 0:03:00]}  Nf8 {[%clk 0:03:00]} 8. O-O {[%clk 0:03:01]}  Ng6 {[%clk 0:03:01]} 9. a3 {[%clk 0:02:53]}  O-O {[%clk 0:02:59]} 10. b4 {[%clk 0:02:53]}  b6 {[%clk 0:03:00]} 11. Ne1 {[%clk 0:02:44]}  h6 {[%clk 0:02:59]} 12. Nd3 {[%clk 0:02:43]}  Nh7 {[%clk 0:02:56]} 13. a4 {[%clk 0:02:37]}  Bg5 {[%clk 0:02:49]} 14. a5 {[%clk 0:02:36]}  Bxc1 {[%clk 0:02:46]} 15. Qxc1 {[%clk 0:02:35]}  Bd7 {[%clk 0:02:41]} 16. axb6 {[%clk 0:01:55]}  axb6 {[%clk 0:02:41]} 17. Qb2 {[%clk 0:01:55]}  Qg5 {[%clk 0:02:32]} 18. g3 {[%clk 0:01:48]}  Nf4 {[%clk 0:02:13]} 19. Nxf4 {[%clk 0:01:43]}  exf4 {[%clk 0:02:14]} 20. bxc5 {[%clk 0:01:42]}  bxc5 {[%clk 0:02:15]} 21. Rxa8 {[%clk 0:01:39]}  Rxa8 {[%clk 0:02:16]} 22. Qb7 {[%clk 0:01:37]}  Rd8 {[%clk 0:02:12]} 23. Qc7 {[%clk 0:01:36]}  fxg3 {[%clk 0:01:47]} 24. hxg3 {[%clk 0:01:33]}  Bh3 {[%clk 0:01:39]} 25. Rd1 {[%clk 0:01:28]}  Nf8 {[%clk 0:01:33]} 26. e5 {[%clk 0:01:26]}  Rd7 {[%clk 0:01:23]} 27. Qa5 {[%clk 0:01:21]}  Qxe5 {[%clk 0:01:23]} 28. Bf3 {[%clk 0:01:19]}  Bf5 {[%clk 0:01:13]} 29. Nb5 {[%clk 0:01:15]}  Ng6 {[%clk 0:01:02]} 30. Re1 {[%clk 0:01:13]}  Qf6 {[%clk 0:01:01]} 31. Re8+ {[%clk 0:01:12]}  Kh7 {[%clk 0:01:01]} 32. Qa8 {[%clk 0:01:12]}  Re7 {[%clk 0:00:52]} 33. Rxe7 {[%clk 0:00:51]}  Qxe7 {[%clk 0:00:47]} 34. Qb8 {[%clk 0:00:41]}  Be4 {[%clk 0:00:39]} 35. Bxe4 {[%clk 0:00:36]}  Qxe4 {[%clk 0:00:40]} 36. Nxd6 {[%clk 0:00:36]}  Qe1+ {[%clk 0:00:21]} 37. Kg2 {[%clk 0:00:36]}  Qe5 {[%clk 0:00:22]} 38. Qc7 {[%clk 0:00:28]}  Qd4 {[%clk 0:00:15]} 39. Qxf7 {[%clk 0:00:27]}  Ne5 {[%clk 0:00:09]} 40. Qf5+ {[%clk 0:00:25]}  Kg8 {[%clk 0:00:09]} 41. Qe6+ {[%clk 0:00:24]}  Kh7 {[%clk 0:00:10]} 42. Qf5+ {[%clk 0:00:12]}  Kg8 {[%clk 0:00:09]} 43. Qe4 {[%clk 0:00:12]}  Qxe4+ {[%clk 0:00:06]} 44. Nxe4 {[%clk 0:00:12]}  Nxc4 {[%clk 0:00:07]} 45. Nxc5 {[%clk 0:00:12]}  Kf7 {[%clk 0:00:07]} 46. Kf3 {[%clk 0:00:13]}  Ke7 {[%clk 0:00:03]} 47. Ne4 {[%clk 0:00:13]}  Ne5+ {[%clk 0:00:02]} 48. Kf4 {[%clk 0:00:13]}  Nd3+ {[%clk 0:00:03]} 49. Kf5 {[%clk 0:00:13]}  Nb4 {[%clk 0:00:01]} 50. Kg6 {[%clk 0:00:11]}  Kf8 {[%clk 0:00:01]} 51. d6 {[%clk 0:00:11]}  Nc6 {[%clk 0:00:01]} 52. f4 {[%clk 0:00:10]}  Kg8 {[%clk 0:00:02]} 53. d7 {[%clk 0:00:09]}  Kf8 {[%clk 0:00:02]} 54. f5 {[%clk 0:00:09]}  Ne5+ {[%clk 0:00:02]} 55. Kh7 {[%clk 0:00:09]}  Nxd7 {[%clk 0:00:03]} 56. g4 {[%clk 0:00:09]}  Kf7 {[%clk 0:00:02]} 57. g5 {[%clk 0:00:10]}  hxg5 {[%clk 0:00:03]} 58. Nxg5+ {[%clk 0:00:10]}  Kf6 {[%clk 0:00:03]} 59. Ne6 {[%clk 0:00:10]}  Kxf5 {[%clk 0:00:03]} 60. Kxg7 {[%clk 0:00:09]} 1/2-1/2


[Site "https://www.chess.com"]

[Event "Titled Tuesday Blitz June 27 Late 2023"]
[White "Mahdavi, Reza"]
[Black "Ozates, Tuna"]
[WhiteFideId "12595926"]
[BlackFideId "6354521"]
[WhiteElo "2745"]
[BlackElo "2575"]
[Result "1-0"]
[Round "8"]
[TimeControl "180+2"]
[Date "2023.06.27"]
[WhiteClock "0:01:21"]
[BlackClock "0:00:00"]
[Board "38"]

1. e4 {[%clk 0:03:00]}  c5 {[%clk 0:02:59]} 2. Nf3 {[%clk 0:03:01]}  Nc6 {[%clk 0:02:59]} 3. Bb5 {[%clk 0:03:00]}  g6 {[%clk 0:03:00]} 4. O-O {[%clk 0:03:01]}  Bg7 {[%clk 0:03:00]} 5. Re1 {[%clk 0:03:01]}  Nf6 {[%clk 0:02:56]} 6. e5 {[%clk 0:03:02]}  Nd5 {[%clk 0:02:56]} 7. Nc3 {[%clk 0:03:02]}  Nc7 {[%clk 0:02:55]} 8. Bxc6 {[%clk 0:03:03]}  dxc6 {[%clk 0:02:56]} 9. Ne4 {[%clk 0:03:04]}  Ne6 {[%clk 0:02:56]} 10. d3 {[%clk 0:03:04]}  O-O {[%clk 0:02:57]} 11. Be3 {[%clk 0:03:04]}  b6 {[%clk 0:02:57]} 12. Qd2 {[%clk 0:03:04]}  Nd4 {[%clk 0:02:57]} 13. Nxd4 {[%clk 0:03:05]}  cxd4 {[%clk 0:02:58]} 14. Bh6 {[%clk 0:03:06]}  Qd5 {[%clk 0:02:57]} 15. Bxg7 {[%clk 0:02:53]}  Kxg7 {[%clk 0:02:57]} 16. Qf4 {[%clk 0:02:54]}  c5 {[%clk 0:02:37]} 17. h4 {[%clk 0:02:41]}  Bb7 {[%clk 0:02:34]} 18. h5 {[%clk 0:02:40]}  gxh5 {[%clk 0:02:14]} 19. Qg5+ {[%clk 0:02:39]}  Kh8 {[%clk 0:02:14]} 20. Qxe7 {[%clk 0:02:40]}  Rg8 {[%clk 0:02:06]} 21. f3 {[%clk 0:02:35]}  Rg6 {[%clk 0:01:59]} 22. Kh1 {[%clk 0:02:13]}  Rag8 {[%clk 0:01:56]} 23. Re2 {[%clk 0:02:13]}  Qe6 {[%clk 0:01:03]} 24. Qxe6 {[%clk 0:01:53]}  fxe6 {[%clk 0:00:58]} 25. Nf6 {[%clk 0:01:53]}  R8g7 {[%clk 0:00:57]} 26. Kh2 {[%clk 0:01:51]}  h4 {[%clk 0:00:55]} 27. a4 {[%clk 0:01:48]}  a5 {[%clk 0:00:52]} 28. Rf2 {[%clk 0:01:46]}  Rg5 {[%clk 0:00:45]} 29. Re1 {[%clk 0:01:40]}  Bc6 {[%clk 0:00:41]} 30. b3 {[%clk 0:01:36]}  R7g6 {[%clk 0:00:41]} 31. Ree2 {[%clk 0:01:35]}  Kg7 {[%clk 0:00:36]} 32. Kh3 {[%clk 0:01:27]}  Rg3+ {[%clk 0:00:36]} 33. Kxh4 {[%clk 0:01:26]}  Kf7 {[%clk 0:00:28]} 34. Ng4 {[%clk 0:01:23]}  R3xg4+ {[%clk 0:00:07]} 35. fxg4+ {[%clk 0:01:24]}  Ke7 {[%clk 0:00:08]} 36. g5 {[%clk 0:01:24]}  h6 {[%clk 0:00:06]} 37. gxh6 {[%clk 0:01:19]}  Rxh6+ {[%clk 0:00:07]} 38. Kg5 {[%clk 0:01:19]}  Rh8 {[%clk 0:00:06]} 39. g4 {[%clk 0:01:20]}  Rg8+ {[%clk 0:00:03]} 40. Kh4 {[%clk 0:01:21]}  Bd5 {[%clk 0:00:00]} 41. Rf6 {[%clk 0:01:21]} 1-0


[Site "https://www.chess.com"]

[Event "Titled Tuesday Blitz June 27 Late 2023"]
[White "Jimenez Almeida, Luis David"]
[Black "Rosen, Eric"]
[WhiteFideId "22242244"]
[BlackFideId "2032562"]
[WhiteElo "2560"]
[BlackElo "2683"]
[Result "0-1"]
[Round "8"]
[TimeControl "180+2"]
[Date "2023.06.27"]
[WhiteClock "0:00:01"]
[BlackClock "0:00:29"]
[Board "39"]

1. e4 {[%clk 0:03:00]}  c5 {[%clk 0:02:59]} 2. Nc3 {[%clk 0:02:59]}  e6 {[%clk 0:02:59]} 3. Nge2 {[%clk 0:02:59]}  Nc6 {[%clk 0:02:58]} 4. d4 {[%clk 0:02:58]}  cxd4 {[%clk 0:02:59]} 5. Nxd4 {[%clk 0:02:59]}  Qc7 {[%clk 0:02:59]} 6. Be3 {[%clk 0:02:58]}  a6 {[%clk 0:02:58]} 7. Be2 {[%clk 0:02:55]}  Nf6 {[%clk 0:02:57]} 8. O-O {[%clk 0:02:54]}  Bb4 {[%clk 0:02:58]} 9. Nxc6 {[%clk 0:02:24]}  bxc6 {[%clk 0:02:58]} 10. Qd3 {[%clk 0:02:18]}  d5 {[%clk 0:02:54]} 11. exd5 {[%clk 0:02:15]}  cxd5 {[%clk 0:02:53]} 12. Na4 {[%clk 0:02:02]}  O-O {[%clk 0:02:49]} 13. Nb6 {[%clk 0:01:57]}  Rb8 {[%clk 0:02:45]} 14. Nxc8 {[%clk 0:01:57]}  Rfxc8 {[%clk 0:02:45]} 15. c3 {[%clk 0:01:55]}  Bd6 {[%clk 0:02:43]} 16. h3 {[%clk 0:01:49]}  Rxb2 {[%clk 0:02:42]} 17. Qxa6 {[%clk 0:01:48]}  Ne4 {[%clk 0:02:23]} 18. Rfc1 {[%clk 0:01:33]}  Rcb8 {[%clk 0:02:07]} 19. Bd3 {[%clk 0:01:20]}  Bh2+ {[%clk 0:01:39]} 20. Kf1 {[%clk 0:01:07]}  Bf4 {[%clk 0:01:32]} 21. Bxe4 {[%clk 0:00:20]}  Bxe3 {[%clk 0:01:29]} 22. Bxh7+ {[%clk 0:00:20]}  Kh8 {[%clk 0:01:16]} 23. fxe3 {[%clk 0:00:21]}  Kxh7 {[%clk 0:00:53]} 24. Qd3+ {[%clk 0:00:21]}  f5 {[%clk 0:00:54]} 25. Kg1 {[%clk 0:00:19]}  Qg3 {[%clk 0:00:51]} 26. Qf1 {[%clk 0:00:13]}  Qxe3+ {[%clk 0:00:32]} 27. Kh1 {[%clk 0:00:13]}  Rf2 {[%clk 0:00:32]} 28. Qe1 {[%clk 0:00:11]}  Qg3 {[%clk 0:00:29]} 29. Qg1 {[%clk 0:00:01]}  Rbb2 {[%clk 0:00:29]} 0-1


[Site "https://www.chess.com"]

[Event "Titled Tuesday Blitz June 27 Late 2023"]
[White "Vovk, Orest"]
[Black "Licznerski, Lukasz"]
[WhiteFideId "14113490"]
[BlackFideId "1179250"]
[WhiteElo "2527"]
[BlackElo "2845"]
[Result "0-1"]
[Round "8"]
[TimeControl "180+2"]
[Date "2023.06.27"]
[WhiteClock "0:00:11"]
[BlackClock "0:00:04"]
[Board "42"]

1. g4 {[%clk 0:03:00]}  d5 {[%clk 0:02:59]} 2. h3 {[%clk 0:03:00]}  e5 {[%clk 0:02:58]} 3. Bg2 {[%clk 0:02:59]}  c6 {[%clk 0:02:51]} 4. d4 {[%clk 0:02:59]}  exd4 {[%clk 0:02:50]} 5. Qxd4 {[%clk 0:02:58]}  Nd7 {[%clk 0:02:34]} 6. Nc3 {[%clk 0:02:58]}  Ngf6 {[%clk 0:02:32]} 7. Bg5 {[%clk 0:02:57]}  Bc5 {[%clk 0:02:28]} 8. Qf4 {[%clk 0:02:56]}  h6 {[%clk 0:02:24]} 9. Bxf6 {[%clk 0:02:54]}  Qxf6 {[%clk 0:02:23]} 10. Qxf6 {[%clk 0:02:54]}  Nxf6 {[%clk 0:02:23]} 11. e3 {[%clk 0:02:52]}  d4 {[%clk 0:02:16]} 12. exd4 {[%clk 0:02:50]}  Bxd4 {[%clk 0:02:17]} 13. Nge2 {[%clk 0:02:47]}  Bb6 {[%clk 0:02:14]} 14. O-O {[%clk 0:02:41]}  Bd7 {[%clk 0:02:09]} 15. Ng3 {[%clk 0:02:31]}  O-O-O {[%clk 0:02:05]} 16. Rad1 {[%clk 0:02:26]}  Be6 {[%clk 0:02:01]} 17. b3 {[%clk 0:02:16]}  h5 {[%clk 0:01:40]} 18. g5 {[%clk 0:02:14]}  h4 {[%clk 0:01:36]} 19. Nge4 {[%clk 0:02:11]}  Nh5 {[%clk 0:01:29]} 20. Ne2 {[%clk 0:01:57]}  Kc7 {[%clk 0:01:17]} 21. c4 {[%clk 0:01:54]}  Rxd1 {[%clk 0:01:02]} 22. Rxd1 {[%clk 0:01:53]}  Rd8 {[%clk 0:01:03]} 23. Rxd8 {[%clk 0:01:31]}  Kxd8 {[%clk 0:01:04]} 24. c5 {[%clk 0:01:28]}  Bc7 {[%clk 0:01:03]} 25. Bf3 {[%clk 0:01:19]}  Nf4 {[%clk 0:01:00]} 26. Nxf4 {[%clk 0:01:15]}  Bxf4 {[%clk 0:01:01]} 27. Kg2 {[%clk 0:00:54]}  Ke7 {[%clk 0:00:53]} 28. Bg4 {[%clk 0:00:46]}  Bd5 {[%clk 0:00:51]} 29. f3 {[%clk 0:00:46]}  Be3 {[%clk 0:00:38]} 30. Nd6 {[%clk 0:00:30]}  Bxc5 {[%clk 0:00:33]} 31. Nxb7 {[%clk 0:00:28]}  Be3 {[%clk 0:00:33]} 32. g6 {[%clk 0:00:26]}  fxg6 {[%clk 0:00:29]} 33. Na5 {[%clk 0:00:25]}  Bb6 {[%clk 0:00:17]} 34. Nc4 {[%clk 0:00:24]}  Bd4 {[%clk 0:00:17]} 35. Kf1 {[%clk 0:00:19]}  Kf6 {[%clk 0:00:17]} 36. Ke2 {[%clk 0:00:14]}  Kg5 {[%clk 0:00:18]} 37. Ne3 {[%clk 0:00:14]}  Bf7 {[%clk 0:00:15]} 38. Ng2 {[%clk 0:00:12]}  Bf6 {[%clk 0:00:11]} 39. f4+ {[%clk 0:00:11]}  Kh6 {[%clk 0:00:12]} 40. Ne3 {[%clk 0:00:10]}  Bd4 {[%clk 0:00:07]} 41. Kf3 {[%clk 0:00:07]}  Bg8 {[%clk 0:00:04]} 42. Ke4 {[%clk 0:00:07]}  Bc5 {[%clk 0:00:04]} 43. Nc4 {[%clk 0:00:05]}  g5 {[%clk 0:00:03]} 44. f5 {[%clk 0:00:05]}  Bd5+ {[%clk 0:00:03]} 45. Ke5 {[%clk 0:00:05]}  Bb4 {[%clk 0:00:03]} 46. Kd4 {[%clk 0:00:03]}  Be7 {[%clk 0:00:02]} 47. Ke5 {[%clk 0:00:02]}  Bf6+ {[%clk 0:00:03]} 48. Kd6 {[%clk 0:00:02]}  g6 {[%clk 0:00:03]} 49. Ne5 {[%clk 0:00:02]}  gxf5 {[%clk 0:00:03]} 50. Bxf5 {[%clk 0:00:03]}  Bxe5+ {[%clk 0:00:01]} 51. Kxe5 {[%clk 0:00:03]}  Kg7 {[%clk 0:00:02]} 52. Bg4 {[%clk 0:00:03]}  Kg6 {[%clk 0:00:02]} 53. Kd4 {[%clk 0:00:03]}  Kf6 {[%clk 0:00:02]} 54. Kc5 {[%clk 0:00:03]}  Ke5 {[%clk 0:00:03]} 55. b4 {[%clk 0:00:03]}  Be6 {[%clk 0:00:02]} 56. Kxc6 {[%clk 0:00:03]}  Bxg4 {[%clk 0:00:02]} 57. hxg4 {[%clk 0:00:04]}  h3 {[%clk 0:00:03]} 58. Kb7 {[%clk 0:00:04]}  h2 {[%clk 0:00:03]} 59. Kxa7 {[%clk 0:00:05]}  h1=Q {[%clk 0:00:04]} 60. b5 {[%clk 0:00:06]}  Kd6 {[%clk 0:00:04]} 61. b6 {[%clk 0:00:07]}  Qg1 {[%clk 0:00:03]} 62. a4 {[%clk 0:00:08]}  Kc6 {[%clk 0:00:03]} 63. a5 {[%clk 0:00:09]}  Qc5 {[%clk 0:00:03]} 64. Ka6 {[%clk 0:00:09]}  Qb5+ {[%clk 0:00:03]} 65. Ka7 {[%clk 0:00:10]}  Qxa5+ {[%clk 0:00:03]} 66. Kb8 {[%clk 0:00:10]}  Qxb6+ {[%clk 0:00:04]} 67. Kc8 {[%clk 0:00:11]}  Qc7# {[%clk 0:00:04]} 0-1


[Site "https://www.chess.com"]

[Event "Titled Tuesday Blitz June 27 Late 2023"]
[White "Goltsev, Dmitry"]
[Black "Pinheiro, Iung Alicio de O."]
[WhiteFideId "24176710"]
[BlackFideId "2104350"]
[WhiteElo "2701"]
[BlackElo "2580"]
[Result "1-0"]
[Round "8"]
[TimeControl "180+2"]
[Date "2023.06.27"]
[WhiteClock "0:01:23"]
[BlackClock "0:00:00"]
[Board "43"]

1. e4 {[%clk 0:02:59]}  e5 {[%clk 0:02:57]} 2. Nf3 {[%clk 0:02:59]}  Nc6 {[%clk 0:02:57]} 3. Bb5 {[%clk 0:03:00]}  a6 {[%clk 0:02:57]} 4. Ba4 {[%clk 0:03:00]}  d6 {[%clk 0:02:57]} 5. c3 {[%clk 0:02:59]}  Bd7 {[%clk 0:02:56]} 6. d4 {[%clk 0:03:00]}  Nge7 {[%clk 0:02:57]} 7. dxe5 {[%clk 0:03:00]}  dxe5 {[%clk 0:02:43]} 8. Bg5 {[%clk 0:02:58]}  Qc8 {[%clk 0:02:39]} 9. O-O {[%clk 0:02:55]}  Ng6 {[%clk 0:02:38]} 10. Nbd2 {[%clk 0:02:51]}  b5 {[%clk 0:02:35]} 11. Bb3 {[%clk 0:02:50]}  Bd6 {[%clk 0:02:31]} 12. a4 {[%clk 0:02:43]}  O-O {[%clk 0:02:27]} 13. Qe2 {[%clk 0:02:35]}  Na5 {[%clk 0:02:14]} 14. Bc2 {[%clk 0:02:28]}  Qb7 {[%clk 0:01:53]} 15. b4 {[%clk 0:02:23]}  Nc6 {[%clk 0:01:51]} 16. axb5 {[%clk 0:02:23]}  axb5 {[%clk 0:01:51]} 17. Bb3 {[%clk 0:02:23]}  Nd8 {[%clk 0:01:34]} 18. Qd3 {[%clk 0:02:08]}  Ne6 {[%clk 0:01:28]} 19. Bd5 {[%clk 0:02:07]}  Bc6 {[%clk 0:01:26]} 20. Bxe6 {[%clk 0:02:06]}  fxe6 {[%clk 0:01:26]} 21. Be3 {[%clk 0:02:05]}  h6 {[%clk 0:01:22]} 22. Qc2 {[%clk 0:02:00]}  Nf4 {[%clk 0:01:13]} 23. Qb3 {[%clk 0:01:56]}  Nxg2 {[%clk 0:00:32]} 24. Qxe6+ {[%clk 0:01:50]}  Kh8 {[%clk 0:00:27]} 25. Rxa8 {[%clk 0:01:48]}  Qxa8 {[%clk 0:00:27]} 26. Kxg2 {[%clk 0:01:49]}  Bxe4 {[%clk 0:00:27]} 27. Qg4 {[%clk 0:01:42]}  Bc6 {[%clk 0:00:22]} 28. Rg1 {[%clk 0:01:37]}  Rf6 {[%clk 0:00:15]} 29. Kf1 {[%clk 0:01:36]}  Qf8 {[%clk 0:00:15]} 30. Nh4 {[%clk 0:01:35]}  Be8 {[%clk 0:00:12]} 31. Ne4 {[%clk 0:01:32]}  Be7 {[%clk 0:00:05]} 32. Nxf6 {[%clk 0:01:31]}  Bxf6 {[%clk 0:00:06]} 33. Ng6+ {[%clk 0:01:31]}  Bxg6 {[%clk 0:00:06]} 34. Qxg6 {[%clk 0:01:32]}  Qd6 {[%clk 0:00:06]} 35. Ke2 {[%clk 0:01:28]}  e4 {[%clk 0:00:05]} 36. Qxe4 {[%clk 0:01:25]}  Qxh2 {[%clk 0:00:05]} 37. Rd1 {[%clk 0:01:22]}  Qh5+ {[%clk 0:00:04]} 38. Qf3 {[%clk 0:01:22]}  Qf7 {[%clk 0:00:02]} 39. Qa8+ {[%clk 0:01:22]}  Kh7 {[%clk 0:00:00]} 40. Qd5 {[%clk 0:01:23]} 1-0


[Site "https://www.chess.com"]

[Event "Titled Tuesday Blitz June 27 Late 2023"]
[White "Fisher_TheGalactic"]
[Black "Manukyan, Artyom"]
[BlackFideId "13305786"]
[WhiteElo "2689"]
[BlackElo "2570"]
[Result "0-1"]
[Round "8"]
[TimeControl "180+2"]
[Date "2023.06.27"]
[WhiteClock "0:00:00"]
[BlackClock "0:00:19"]
[Board "45"]

1. e4 {[%clk 0:03:00]}  c5 {[%clk 0:02:59]} 2. Nf3 {[%clk 0:03:00]}  d6 {[%clk 0:02:58]} 3. Bc4 {[%clk 0:03:00]}  Nf6 {[%clk 0:02:58]} 4. d3 {[%clk 0:02:57]}  Nc6 {[%clk 0:02:58]} 5. O-O {[%clk 0:02:58]}  g6 {[%clk 0:02:58]} 6. c3 {[%clk 0:02:58]}  Bg7 {[%clk 0:02:58]} 7. Ng5 {[%clk 0:02:53]}  O-O {[%clk 0:02:58]} 8. f4 {[%clk 0:02:53]}  h6 {[%clk 0:02:55]} 9. Nf3 {[%clk 0:02:42]}  a6 {[%clk 0:02:53]} 10. a4 {[%clk 0:02:41]}  e6 {[%clk 0:02:42]} 11. Ba2 {[%clk 0:02:38]}  d5 {[%clk 0:02:42]} 12. e5 {[%clk 0:02:38]}  Nd7 {[%clk 0:02:40]} 13. g4 {[%clk 0:02:35]}  Qe7 {[%clk 0:02:39]} 14. Nbd2 {[%clk 0:02:30]}  b5 {[%clk 0:02:38]} 15. axb5 {[%clk 0:02:18]}  axb5 {[%clk 0:02:39]} 16. Bxd5 {[%clk 0:02:18]}  Rxa1 {[%clk 0:02:36]} 17. Bxc6 {[%clk 0:02:17]}  b4 {[%clk 0:02:19]} 18. Ne4 {[%clk 0:02:12]}  Ba6 {[%clk 0:01:59]} 19. g5 {[%clk 0:01:59]}  h5 {[%clk 0:01:50]} 20. Nf6+ {[%clk 0:01:05]}  Bxf6 {[%clk 0:01:48]} 21. gxf6 {[%clk 0:01:06]}  Qd8 {[%clk 0:01:48]} 22. c4 {[%clk 0:01:03]}  Qc7 {[%clk 0:01:43]} 23. Be4 {[%clk 0:01:03]}  Bb7 {[%clk 0:01:44]} 24. Ng5 {[%clk 0:01:02]}  Bxe4 {[%clk 0:01:41]} 25. Nxe4 {[%clk 0:01:03]}  Nb8 {[%clk 0:01:35]} 26. Ng3 {[%clk 0:01:02]}  Qd7 {[%clk 0:01:29]} 27. Nxh5 {[%clk 0:00:31]}  Qd4+ {[%clk 0:01:21]} 28. Kh1 {[%clk 0:00:30]}  Rd8 {[%clk 0:01:13]} 29. Ng3 {[%clk 0:00:22]}  Qxd3 {[%clk 0:01:09]} 30. Qg4 {[%clk 0:00:23]}  Rd4 {[%clk 0:00:57]} 31. Qh3 {[%clk 0:00:18]}  g5 {[%clk 0:00:24]} 32. fxg5 {[%clk 0:00:13]}  Rxc4 {[%clk 0:00:19]} 33. Qh6 {[%clk 0:00:11]}  Qg6 {[%clk 0:00:18]} 34. Qxg6+ {[%clk 0:00:08]}  fxg6 {[%clk 0:00:19]} 35. Be3 {[%clk 0:00:04]}  Rxf1+ {[%clk 0:00:20]} 36. Nxf1 {[%clk 0:00:04]}  Nc6 {[%clk 0:00:20]} 37. Nd2 {[%clk 0:00:03]}  Rc1+ {[%clk 0:00:20]} 38. Kg2 {[%clk 0:00:02]}  Rc2 {[%clk 0:00:21]} 39. Kf3 {[%clk 0:00:02]}  Nxe5+ {[%clk 0:00:21]} 40. Ke4 {[%clk 0:00:02]}  Ng4 {[%clk 0:00:19]} 41. Bf4 {[%clk 0:00:00]}  e5 {[%clk 0:00:19]} 0-1


[Site "https://www.chess.com"]

[Event "Titled Tuesday Blitz June 27 Late 2023"]
[White "Bolourchifard, Farzad"]
[Black "Bjelobrk, Igor"]
[WhiteFideId "12510084"]
[BlackFideId "4300726"]
[WhiteElo "2686"]
[BlackElo "2568"]
[Result "0-1"]
[Round "8"]
[TimeControl "180+2"]
[Date "2023.06.27"]
[WhiteClock "0:00:00"]
[BlackClock "0:00:16"]
[Board "46"]

1. d4 {[%clk 0:03:00]}  e6 {[%clk 0:02:58]} 2. Nf3 {[%clk 0:03:00]}  c5 {[%clk 0:02:58]} 3. d5 {[%clk 0:02:57]}  exd5 {[%clk 0:02:56]} 4. Qxd5 {[%clk 0:02:58]}  Nf6 {[%clk 0:02:55]} 5. Qd1 {[%clk 0:02:58]}  d5 {[%clk 0:02:55]} 6. Bg5 {[%clk 0:02:59]}  Be7 {[%clk 0:02:55]} 7. e3 {[%clk 0:02:59]}  O-O {[%clk 0:02:55]} 8. Be2 {[%clk 0:02:59]}  h6 {[%clk 0:02:54]} 9. Bh4 {[%clk 0:02:59]}  Nc6 {[%clk 0:02:54]} 10. c3 {[%clk 0:02:59]}  Bf5 {[%clk 0:02:48]} 11. O-O {[%clk 0:02:59]}  Qd7 {[%clk 0:02:46]} 12. Nbd2 {[%clk 0:02:58]}  Rad8 {[%clk 0:02:45]} 13. Qa4 {[%clk 0:02:57]}  a6 {[%clk 0:02:37]} 14. Rfd1 {[%clk 0:02:54]}  Qe6 {[%clk 0:02:30]} 15. Nf1 {[%clk 0:02:47]}  b5 {[%clk 0:02:24]} 16. Qa3 {[%clk 0:02:16]}  c4 {[%clk 0:02:19]} 17. b4 {[%clk 0:02:17]}  a5 {[%clk 0:02:12]} 18. Nd4 {[%clk 0:02:03]}  Nxd4 {[%clk 0:02:11]} 19. Rxd4 {[%clk 0:02:03]}  axb4 {[%clk 0:02:09]} 20. cxb4 {[%clk 0:02:04]}  g5 {[%clk 0:02:03]} 21. Bg3 {[%clk 0:02:04]}  Ne4 {[%clk 0:02:02]} 22. Rdd1 {[%clk 0:01:36]}  Ra8 {[%clk 0:01:59]} 23. Qc1 {[%clk 0:01:34]}  Bxb4 {[%clk 0:01:57]} 24. Bf3 {[%clk 0:01:23]}  Be7 {[%clk 0:01:51]} 25. Bxe4 {[%clk 0:01:17]}  Bxe4 {[%clk 0:01:51]} 26. Qd2 {[%clk 0:01:08]}  Ra3 {[%clk 0:01:42]} 27. f3 {[%clk 0:00:51]}  Bd3 {[%clk 0:01:37]} 28. f4 {[%clk 0:00:51]}  Rfa8 {[%clk 0:01:32]} 29. Bf2 {[%clk 0:00:40]}  Bf6 {[%clk 0:01:31]} 30. fxg5 {[%clk 0:00:37]}  hxg5 {[%clk 0:01:30]} 31. Ng3 {[%clk 0:00:31]}  Bc3 {[%clk 0:01:19]} 32. Qc1 {[%clk 0:00:28]}  Qe5 {[%clk 0:01:10]} 33. Rb1 {[%clk 0:00:25]}  b4 {[%clk 0:01:02]} 34. e4 {[%clk 0:00:15]}  dxe4 {[%clk 0:01:01]} 35. Nh5 {[%clk 0:00:10]}  Rxa2 {[%clk 0:00:56]} 36. Bg3 {[%clk 0:00:10]}  Qf5 {[%clk 0:00:50]} 37. h3 {[%clk 0:00:04]}  Bd4+ {[%clk 0:00:45]} 38. Kh2 {[%clk 0:00:04]}  b3 {[%clk 0:00:38]} 39. Rd2 {[%clk 0:00:01]}  Rxd2 {[%clk 0:00:37]} 40. Qxd2 {[%clk 0:00:02]}  Ra2 {[%clk 0:00:25]} 41. Qb4 {[%clk 0:00:02]}  Qf3 {[%clk 0:00:16]} 42. Qb8+ {[%clk 0:00:00]}  Kh7 {[%clk 0:00:16]} 0-1


[Site "https://www.chess.com"]

[Event "Titled Tuesday Blitz June 27 Late 2023"]
[White "Mirzoev, Azer"]
[Black "Ambartsumova, Karina"]
[WhiteFideId "13400304"]
[BlackFideId "4166299"]
[WhiteElo "2678"]
[BlackElo "2567"]
[Result "1-0"]
[Round "8"]
[TimeControl "180+2"]
[Date "2023.06.27"]
[WhiteClock "0:00:18"]
[BlackClock "0:00:00"]
[Board "47"]

1. d4 {[%clk 0:03:00]}  Nf6 {[%clk 0:02:59]} 2. c4 {[%clk 0:02:59]}  g6 {[%clk 0:02:59]} 3. Nc3 {[%clk 0:02:59]}  Bg7 {[%clk 0:03:00]} 4. e4 {[%clk 0:02:58]}  d6 {[%clk 0:03:00]} 5. Bg5 {[%clk 0:02:57]}  O-O {[%clk 0:02:58]} 6. Qd2 {[%clk 0:02:54]}  c5 {[%clk 0:02:59]} 7. d5 {[%clk 0:02:53]}  a6 {[%clk 0:02:59]} 8. a4 {[%clk 0:02:48]}  Qa5 {[%clk 0:02:45]} 9. Ra3 {[%clk 0:02:45]}  e6 {[%clk 0:02:38]} 10. f3 {[%clk 0:02:40]}  exd5 {[%clk 0:02:33]} 11. cxd5 {[%clk 0:02:40]}  Nbd7 {[%clk 0:02:31]} 12. Nge2 {[%clk 0:02:36]}  Ne5 {[%clk 0:02:22]} 13. Ng3 {[%clk 0:02:35]}  Qb4 {[%clk 0:01:58]} 14. a5 {[%clk 0:02:27]}  Bd7 {[%clk 0:01:47]} 15. Be2 {[%clk 0:02:26]}  Nc4 {[%clk 0:01:31]} 16. Bxc4 {[%clk 0:02:24]}  Qxc4 {[%clk 0:01:32]} 17. Nge2 {[%clk 0:01:41]}  b5 {[%clk 0:01:19]} 18. axb6 {[%clk 0:01:41]}  Rfb8 {[%clk 0:01:19]} 19. O-O {[%clk 0:01:39]}  Rxb6 {[%clk 0:01:19]} 20. Rc1 {[%clk 0:01:30]}  Qb4 {[%clk 0:01:11]} 21. Rc2 {[%clk 0:01:30]}  Rab8 {[%clk 0:00:56]} 22. h3 {[%clk 0:01:29]}  Nh5 {[%clk 0:00:50]} 23. g4 {[%clk 0:01:23]}  Nf6 {[%clk 0:00:49]} 24. Kg2 {[%clk 0:01:23]}  Ne8 {[%clk 0:00:46]} 25. Bh6 {[%clk 0:01:18]}  Bxh6 {[%clk 0:00:27]} 26. Qxh6 {[%clk 0:01:17]}  Qc4 {[%clk 0:00:27]} 27. Qd2 {[%clk 0:01:11]}  Rb3 {[%clk 0:00:27]} 28. Ra2 {[%clk 0:00:55]}  Bb5 {[%clk 0:00:07]} 29. Kg3 {[%clk 0:00:46]}  Qb4 {[%clk 0:00:07]} 30. Nc1 {[%clk 0:00:40]}  Bc4 {[%clk 0:00:06]} 31. Ra4 {[%clk 0:00:38]}  Qb6 {[%clk 0:00:06]} 32. Rxc4 {[%clk 0:00:37]}  Rb4 {[%clk 0:00:05]} 33. Nd1 {[%clk 0:00:33]}  Qb5 {[%clk 0:00:05]} 34. Rxb4 {[%clk 0:00:32]}  cxb4 {[%clk 0:00:05]} 35. Ne3 {[%clk 0:00:31]}  b3 {[%clk 0:00:05]} 36. Rc3 {[%clk 0:00:30]}  Qa4 {[%clk 0:00:05]} 37. Nc4 {[%clk 0:00:27]}  a5 {[%clk 0:00:04]} 38. h4 {[%clk 0:00:26]}  Qa1 {[%clk 0:00:04]} 39. h5 {[%clk 0:00:25]}  a4 {[%clk 0:00:04]} 40. h6 {[%clk 0:00:23]}  Qb1 {[%clk 0:00:03]} 41. Na3 {[%clk 0:00:22]}  Qa1 {[%clk 0:00:03]} 42. Qd4 {[%clk 0:00:20]}  Qxb2 {[%clk 0:00:02]} 43. Nc4 {[%clk 0:00:18]}  Qb1 {[%clk 0:00:00]} 44. Nxd6 {[%clk 0:00:18]} 1-0


[Site "https://www.chess.com"]